bitfinex-derivatives/quotes_ETHF0:USTF0_20250102
["timestamp","ask_amount","ask_price","bid_price","bid_amount"]
[1735796710946,0.29293,3420.1,3420.0,0.29293]
[1735796713846,0.29293,3420.0,3419.9,3.2078]
[1735796714050,1.32140554,3420.0,3419.9,3.2078]
[1735796715041,1.32140554,3420.0,3419.9,3.50074]
[1735796715249,0.29293,3420.0,3419.9,3.50074]
[1735796715948,9.38438855,3420.2,3420.1,0.29292]
[1735796716142,9.80852836,3420.2,3420.1,0.29292]
[1735796716647,9.38438855,3420.2,3420.1,0.29292]
[1735796717347,7.20185903,3420.2,3420.1,0.29292]
[1735796717747,6.90893903,3420.2,3420.1,0.29292]
[1735796718339,7.20184903,3420.2,3420.1,0.29292]
[1735796718745,7.93741457,3420.2,3419.9,3.2078]
[1735796718945,1.32140554,3420.0,3419.9,3.2078]
[1735796719354,1.76230554,3420.0,3419.9,3.2078]
[1735796719549,0.73383,3420.0,3419.9,3.2078]
[1735796721566,0.73383,3420.0,3419.9,3.651]
[1735796721748,0.73383,3420.0,3419.9,3.94394]
[1735796724054,7.64276903,3420.0,3419.9,3.94394]
[1735796724559,8.06728737,3420.0,3419.9,3.94394]
[1735796725055,10.053445,3420.0,3419.5,3.2078]
[1735796725254,3.2078,3419.7,3418.9,7.820588]
[1735796725455,0.29301,3419.1,3419.0,0.4579922]
[1735796725655,0.29301,3419.1,3418.9,8.113608]
[1735796725851,1.15952,3419.0,3418.9,4.612788]
[1735796726059,0.29303,3418.9,3418.6,0.29305]
[1735796727254,0.29303,3418.9,3418.5,3.2078]
[1735796727255,0.29303,3418.9,3418.7,0.29304]
[1735796727456,0.29305,3418.6,3418.5,3.2078]
[1735796727852,0.29306,3418.5,3418.4,0.4247]
[1735796728255,0.29309,3418.1,3418.0,3.2078]
[1735796729561,2.27908763,3418.1,3417.2,3.2078]
[1735796729757,0.29314,3417.6,3417.3,40.8]
[1735796730251,2.27908763,3418.1,3417.3,40.8]
[1735796730757,3.2078,3417.9,3417.3,40.8]
[1735796730953,0.29315,3417.5,3417.3,40.8]
[1735796731259,3.2078,3417.9,3417.3,40.8]
[1735796731758,0.29315,3417.5,3417.3,40.8]
[1735796731954,3.2078,3417.9,3417.2,3.2078]
[1735796731955,2.27908763,3417.8,3417.2,3.2078]
[1735796732256,5.48688763,3417.5,3416.3,3.2078]
[1735796732459,0.2932,3416.9,3416.7,41.6987]
[1735796732961,0.2932,3416.9,3416.7,0.8987]
[1735796733558,5.48688763,3417.5,3416.7,0.8987]
[1735796734162,0.29319,3417.0,3416.7,1.19191]
[1735796734358,2.27908763,3416.9,3416.3,3.2078]
[1735796734561,2.27908763,3416.6,3415.9,3.50108]
[1735796734756,0.29325,3416.3,3415.9,3.50108]
[1735796734965,0.29325,3416.3,3416.0,40.8]
[1735796735463,0.29325,3416.3,3416.0,41.09327]
[1735796735764,0.457,3416.9,3416.0,43.07908763]
[1735796735953,0.29321,3416.8,3416.4,0.29324]
[1735796736157,3.2078,3417.3,3416.5,0.8592]
[1735796736357,0.29321,3416.8,3416.5,0.8592]
[1735796737561,0.29322,3416.7,3416.5,0.8592]
[1735796742757,0.29321,3416.8,3416.5,1.15243]
[1735796742964,0.29321,3416.9,3416.7,3.2078]
[1735796743972,3.79730771,3417.5,3416.7,3.2078]
[1735796744171,0.29319,3417.1,3416.8,0.29321]
[1735796744569,0.29319,3417.0,3416.8,0.29321]
[1735796745465,3.79730771,3417.5,3416.8,0.29321]
[1735796745867,0.29319,3417.0,3416.8,0.29321]
[1735796749869,0.29319,3417.0,3416.7,0.29321]
[1735796750173,0.29319,3417.0,3416.8,0.2932]
[1735796750374,3.2078,3417.3,3416.6,3.2078]
[1735796750575,0.29319,3417.0,3416.8,0.2932]
[1735796752675,3.2078,3417.3,3416.6,3.2078]
[1735796752872,0.29321,3416.8,3416.6,3.50102]
[1735796753179,3.2078,3417.3,3416.6,3.50102]
[1735796753378,0.29321,3416.8,3416.6,3.50102]
[1735796756283,0.29321,3416.7,3416.6,3.50102]
[1735796756974,0.29321,3416.8,3416.6,3.50102]
[1735796757379,3.94072,3417.3,3416.7,0.29321]
[1735796757380,0.2932,3416.9,3416.7,0.29321]
[1735796758887,0.29321,3416.8,3416.7,0.29321]
[1735796759591,0.29321,3416.9,3416.7,0.29321]
[1735796759888,0.29321,3416.8,3416.7,0.29321]
[1735796760086,3.2078,3417.3,3416.7,0.29321]
[1735796760388,0.29321,3416.8,3416.7,0.29321]
[1735796761487,0.2932,3416.9,3416.8,0.2932]
[1735796761687,3.2078,3417.3,3416.6,5.48688763]
[1735796761888,0.2932,3417.0,3416.8,0.2932]
[1735796762185,0.2932,3417.0,3416.9,0.2932]
[1735796764380,0.29317,3417.3,3416.7,0.73304]
[1735796764586,0.42503215,3417.6,3417.0,5.48688763]
[1735796764788,0.42503215,3417.6,3417.5,0.29314]
[1735796764789,0.29314,3417.6,3417.5,0.29314]
[1735796765593,0.29315,3417.5,3417.4,0.29315]
[1735796766992,0.29315,3417.6,3417.4,0.29315]
[1735796767491,0.29313,3417.8,3417.7,0.29312]
[1735796768589,0.29312,3417.9,3417.4,0.29315]
[1735796768788,0.29311,3417.9,3417.8,0.29312]
[1735796770992,3.2078,3418.1,3417.3,2.27908763]
[1735796771197,0.29312,3417.8,3417.7,0.29312]
[1735796772497,0.29313,3417.7,3417.6,0.29313]
[1735796774196,3.2078,3418.1,3417.7,0.29312]
[1735796774197,0.2931,3418.0,3417.7,0.29312]
[1735796774502,0.29312,3417.8,3417.7,0.29312]
[1735796776497,0.29312,3417.9,3417.8,0.29312]
[1735796777704,0.29313,3417.7,3417.6,0.29313]
[1735796782609,0.29313,3417.8,3417.7,0.29312]
[1735796784205,6.04701269,3417.8,3417.7,0.29312]
[1735796785310,0.29313,3417.8,3417.7,0.29312]
[1735796785503,0.29313,3417.8,3417.7,0.73222]
[1735796787106,0.29312,3417.9,3417.8,0.29311]
[1735796790214,0.29312,3417.9,3417.8,1.32275917]
[1735796790511,0.29312,3417.9,3417.8,1.02964917]
[1735796790706,0.29312,3417.9,3417.8,1.32276917]
[1735796792012,3.5009,3418.1,3418.0,0.2931]
[1735796792204,3.2078,3418.1,3418.0,1.32274917]
[1735796794510,3.50089,3418.1,3418.0,1.32274917]
[1735796794812,3.2078,3418.1,3418.0,1.32274917]
[1735796797414,0.29309,3418.2,3418.1,0.29309]
[1735796797911,0.29309,3418.2,3418.1,1.19009]
[1735796802407,0.42462395,3418.4,3418.1,0.897]
[1735796802607,0.29308,3418.3,3418.2,0.29308]
[1735796803917,0.29309,3418.2,3418.1,2.21973917]
[1735796805119,0.29309,3418.2,3418.1,1.19009]
[1735796805322,7.200837,3418.2,3418.1,2.21973917]
[1735796806020,6.907747,3418.2,3418.1,2.21973917]
[1735796806224,7.200837,3418.2,3418.1,2.21973917]
[1735796807324,6.907747,3418.2,3418.1,2.21973917]
[1735796807724,7.200837,3418.2,3418.1,2.21973917]
[1735796809220,7.200837,3418.2,3418.1,1.19009]
[1735796809421,6.907747,3418.2,3418.1,1.19009]
[1735796810319,7.200827,3418.3,3418.2,0.29309]
[1735796810524,6.907747,3418.3,3418.2,0.74309]
[1735796810827,7.200827,3418.3,3418.2,0.74309]
[1735796811723,7.200827,3418.3,3418.2,0.45]
[1735796811923,0.29309,3418.2,3418.1,1.19009]
[1735796812121,0.29309,3418.2,3418.1,0.74689]
[1735796814623,0.2931,3418.0,3417.9,3.2078]
[1735796817026,0.71775581,3418.0,3417.9,3.2078]
[1735796817426,0.2931,3418.0,3417.9,3.2078]
[1735796817622,9.81554218,3418.1,3418.0,0.2931]
[1735796817927,8.91753698,3418.1,3418.0,0.2931]
[1735796818127,8.91753698,3418.1,3418.0,0.7518]
[1735796818522,9.21062698,3418.1,3418.0,0.7518]
[1735796818722,8.91753698,3418.1,3418.0,0.7518]
[1735796818925,0.85454397,3418.1,3418.0,0.7518]
[1735796820627,9.52244218,3418.1,3418.0,0.7518]
[1735796821524,9.09264218,3418.1,3418.0,0.7518]
[1735796822225,9.38573218,3418.1,3418.0,0.7518]
[1735796822425,1.02964917,3418.1,3418.0,0.7518]
[1735796825433,9.52189801,3418.2,3418.0,0.4587]
[1735796825629,9.52189801,3418.2,3418.1,0.29309]
[1735796826233,9.22880801,3418.2,3418.1,1.32273917]
[1735796826634,9.22880801,3418.3,3418.1,1.02964917]
[1735796826830,9.22880801,3418.3,3418.2,0.75449]
[1735796827128,9.22880801,3418.3,3418.2,1.21264906]
[1735796827328,9.22880801,3418.3,3418.2,0.75449]
[1735796828228,6.91550974,3418.4,3418.3,0.29308]
[1735796828433,6.91550974,3418.4,3418.3,1.32272917]
[1735796829036,6.91550974,3418.5,3418.4,0.29307]
[1735796829236,6.91550974,3418.5,3418.4,5.39071917]
[1735796829938,6.91550974,3418.7,3418.4,5.09764917]
[1735796830135,6.91550974,3418.7,3418.6,0.29305]
[1735796834751,6.91550974,3418.7,3418.6,1.32269917]
[1735796835453,8.0680947,3418.9,3418.8,0.29303]
[1735796835454,6.91550974,3418.9,3418.8,0.29303]
[1735796836142,7.20853974,3418.9,3418.8,0.29303]
[1735796837058,6.91550974,3418.9,3418.8,0.29303]
[1735796837556,8.3611247,3418.9,3418.8,0.29303]
[1735796838150,8.0680947,3418.9,3418.8,0.29303]
[1735796839060,8.3611247,3418.9,3418.8,0.29303]
[1735796840146,8.0680947,3418.9,3418.8,0.29303]
[1735796841558,9.39076387,3419.0,3418.9,0.29303]
[1735796843152,9.09774387,3419.0,3418.5,1.02964917]
[1735796843360,0.29303,3418.9,3418.8,0.29303]
[1735796845758,7.19874779,3418.9,3418.8,0.29303]
[1735796848563,6.90571779,3418.9,3418.8,0.29303]
[1735796848955,6.90571779,3418.9,3418.8,1.17773]
[1735796849854,7.19874779,3418.9,3418.8,1.17773]
[1735796850157,0.29303,3418.9,3418.8,1.17773]
[1735796850655,7.93536696,3419.0,3418.8,1.17773]
[1735796850656,8.22838696,3419.0,3418.9,0.29303]
[1735796852658,0.29303,3418.9,3418.8,1.17773]
[1735796852969,8.22838696,3419.0,3418.9,0.29303]
[1735796854361,8.65278728,3419.0,3418.9,0.29303]
[1735796855469,1.74706949,3419.0,3418.9,0.29303]
[1735796855761,1.32266917,3419.0,3418.9,0.29303]
[1735796860670,0.29302,3419.0,3418.9,0.29303]
[1735796863365,1.02964917,3419.0,3418.8,0.8847]
[1735796863568,0.29305,3418.6,3418.5,0.75016]
[1735796867171,0.29305,3418.7,3418.6,0.29305]
[1735796867666,0.29305,3418.7,3418.5,0.4571]
[1735796867667,0.29304,3418.8,3418.7,0.29304]
[1735796868569,0.29303,3418.9,3418.8,0.29303]
[1735796869670,9.52183801,3418.9,3418.8,0.29303]
[1735796869871,9.94623833,3418.9,3418.8,0.29303]
[1735796870675,0.71743032,3418.9,3418.8,0.29303]
[1735796870866,0.42440032,3418.9,3418.5,0.4571]
[1735796871070,0.29304,3418.8,3418.7,0.29304]
[1735796872369,0.42440032,3418.9,3418.5,0.4571]
[1735796872571,0.29305,3418.7,3418.6,0.29305]
[1735796872772,0.29304,3418.8,3418.7,0.29304]
[1735796877264,10.66781951,3418.8,3418.7,0.29304]
[1735796877470,11.09221983,3418.8,3418.7,0.29304]
[1735796878767,10.79917983,3418.8,3418.7,0.29304]
[1735796881478,11.09220983,3418.8,3418.7,0.29304]
[1735796883274,20.32168262,3418.8,3418.7,0.29304]
[1735796887271,9.94690311,3418.8,3418.7,0.29304]
[1735796891479,0.29305,3418.7,3418.6,0.29305]
[1735796891686,0.71745032,3418.7,3418.6,0.29305]
[1735796897189,0.42440032,3418.7,3418.6,0.29305]
[1735796897892,10.79917983,3418.7,3418.6,0.29305]
[1735796898382,10.79917983,3418.7,3418.6,1.32269917]
[1735796898581,20.02866901,3418.7,3418.6,1.32269917]
[1735796899887,20.32170901,3418.7,3418.6,1.32269917]
[1735796900088,20.02866901,3418.7,3418.6,1.32269917]
[1735796902084,10.79917983,3418.7,3418.6,1.32269917]
[1735796902484,11.09221983,3418.7,3418.6,1.32269917]
[1735796904284,10.79917983,3418.7,3418.6,1.32269917]
[1735796904595,10.37477951,3418.7,3418.6,1.32269917]
[1735796904785,10.79979485,3418.7,3418.6,1.32269917]
[1735796905290,20.02928403,3418.7,3418.6,1.32269917]
[1735796908598,9.65450452,3418.7,3418.6,1.32269917]
[1735796909698,9.65450452,3418.7,3418.5,0.4571]
[1735796910002,0.71806534,3418.6,3418.5,0.4571]
[1735796911398,0.71806534,3418.6,3418.5,0.75016]
[1735796913802,9.94303918,3418.7,3418.5,0.4571]
[1735796913998,9.94303918,3418.7,3418.6,0.29305]
[1735796914297,10.36798431,3418.7,3418.6,0.29305]
[1735796916094,9.65443431,3418.7,3418.6,0.29305]
[1735796921801,9.94747431,3418.7,3418.6,0.29305]
[1735796923702,0.29308,3418.3,3418.2,0.29309]
[1735796924311,0.7777,3418.4,3417.9,0.4457]
[1735796924607,0.29309,3418.2,3418.1,0.29309]
[1735796925105,0.4446,3418.3,3418.2,0.29309]
[1735796926105,0.3152,3418.4,3418.2,1.02964917]
[1735796926306,0.42494513,3418.5,3418.4,0.29307]
[1735796927307,3.2078,3418.6,3418.5,0.29306]
[1735796927507,3.63247526,3418.6,3418.5,0.29306]
[1735796930512,3.92552526,3418.6,3418.5,0.29306]
[1735796930904,0.29307,3418.5,3418.4,0.29306]
[1735796931811,1.32271917,3418.5,3418.4,0.29306]
[1735796932413,1.74739847,3418.5,3418.4,0.29306]
[1735796933615,0.29309,3418.2,3418.0,0.2931]
[1735796933916,0.29309,3418.2,3418.1,0.29309]
[1735796934413,8.36650555,3418.2,3418.1,0.29309]
[1735796934915,8.07341555,3418.2,3418.0,0.4551]
[1735796935118,0.29309,3418.1,3418.0,0.7482]
[1735796935514,1.32273917,3418.1,3418.0,0.4551]
[1735796935716,0.29311,3417.9,3417.8,3.6683]
[1735796935915,0.29311,3417.9,3417.8,3.96142]
[1735796937012,1.32275917,3417.9,3417.8,3.2078]
[1735796937213,0.29314,3417.6,3417.5,0.29314]
[1735796938114,0.29314,3417.6,3416.9,3.50099]
[1735796938115,0.29319,3417.0,3416.9,3.50099]
[1735796938315,0.29319,3417.0,3416.9,0.4591]
[1735796938811,0.2932,3416.9,3416.5,4.88554189]
[1735796939008,0.29322,3416.6,3416.5,5.05141189]
[1735796939418,0.29322,3416.6,3416.5,0.4591]
[1735796940314,0.29325,3416.3,3416.1,0.29326]
[1735796940525,4.23744917,3416.7,3416.0,1.17267]
[1735796940526,0.29326,3416.2,3416.0,1.17267]
[1735796940722,1.02964917,3416.5,3416.0,0.8794]
[1735796941022,0.29324,3416.4,3416.3,0.29325]
[1735796941519,1.32288917,3416.5,3416.3,0.29325]
[1735796942021,0.29323,3416.6,3416.4,0.29324]
[1735796942217,3.2078,3416.7,3416.1,1.02964917]
[1735796942525,0.29323,3416.6,3416.4,0.29324]
[1735796942917,0.29323,3416.6,3416.5,0.4281]
[1735796945822,6.02916766,3416.6,3416.5,0.4281]
[1735796946722,0.29323,3416.6,3416.5,0.4281]
[1735796947426,9.97338683,3416.7,3416.1,0.29326]
[1735796947721,0.29326,3416.3,3416.2,0.4558]
[1735796949717,0.29327,3416.1,3416.0,0.4203]
[1735796951224,0.29327,3416.1,3416.0,0.71357]
[1735796955123,0.29327,3416.1,3416.0,0.4203]
[1735796956025,3.2078,3416.2,3416.0,0.4203]
[1735796956226,3.50106,3416.2,3416.1,0.29327]
[1735796956627,0.29327,3416.1,3416.0,0.71357]
[1735796958931,0.29327,3416.1,3416.0,0.4203]
[1735796959523,0.29327,3416.1,3416.0,0.71357]
[1735796959721,0.29327,3416.1,3416.0,0.4203]
[1735796964829,1.02964917,3416.2,3415.9,0.4398]
[1735796965132,1.32291917,3416.0,3415.9,0.4398]
[1735796965729,0.29327,3416.0,3415.9,0.4398]
[1735796966027,1.32291917,3416.0,3415.9,0.4398]
[1735796971832,1.32291917,3416.0,3415.6,0.4482]
[1735796971833,0.2933,3415.7,3415.6,0.4482]
[1735796972034,0.2933,3415.7,3415.6,1.64711]
[1735796974637,0.2933,3415.8,3415.7,0.29329]
[1735796980343,0.71797932,3415.8,3415.7,0.29329]
[1735796981144,6.45391698,3415.8,3415.7,0.29329]
[1735796981538,5.73593766,3415.8,3415.7,1.32293917]
[1735796981846,5.73593766,3415.8,3415.7,4.53073917]
[1735796982342,5.73593766,3415.8,3415.7,1.32293917]
[1735796982745,5.73593766,3415.9,3415.8,0.29329]
[1735796983849,0.29327,3416.1,3415.7,1.02964917]
[1735796984046,1.32291917,3416.1,3416.0,0.29327]
[1735796985246,0.29327,3416.1,3416.0,0.29327]
[1735796986650,0.71802303,3416.2,3416.1,0.29327]
[1735796986949,0.29326,3416.2,3416.1,0.29327]
[1735796987354,8.36667555,3416.2,3416.1,0.29327]
[1735796987648,8.7913296,3416.2,3416.1,0.29327]
[1735796988956,8.4980696,3416.2,3415.7,4.23744917]
[1735796989255,0.29327,3416.1,3416.0,0.29327]
[1735796989743,0.71798988,3416.1,3416.0,0.29327]
[1735796990046,1.74764756,3416.1,3416.0,0.29327]
[1735796990245,1.74764756,3416.1,3415.9,0.29328]
[1735796990246,0.29328,3416.0,3415.9,0.29328]
[1735796991655,0.29329,3415.9,3415.8,0.29329]
[1735796991846,1.32293917,3415.9,3415.8,0.29329]
[1735796992444,9.39635472,3415.9,3415.8,0.29329]
[1735796992650,9.82108311,3415.9,3415.8,0.29329]
[1735796993446,0.2933,3415.7,3415.6,1.2029]
[1735796994152,0.2933,3415.8,3415.7,0.29329]
[1735796995245,6.92258101,3415.8,3415.6,1.93924917]
[1735796995451,6.92258101,3415.8,3415.7,0.2933]
[1735796996647,6.92258101,3415.8,3415.7,3.5011]
[1735796997551,6.22238101,3415.8,3415.7,3.5011]
[1735796997748,8.07341555,3415.9,3415.8,0.29329]
[1735796997954,7.04481555,3415.9,3415.8,1.32293917]
[1735796998148,6.45236555,3415.9,3415.8,6.78139446]
[1735796998349,6.06786555,3415.9,3415.8,48.31478366]
[1735796998855,5.7331938,3415.9,3415.8,48.31478366]
[1735796999054,1.63833917,3417.0,3415.8,48.31478366]
[1735796999055,1.63833917,3417.0,3416.9,0.2932]
[1735796999848,1.63833917,3417.0,3416.8,0.2932]
[1735797000655,1.34514917,3417.0,3416.9,0.2932]
[1735797000857,1.34514917,3417.0,3416.9,1.32284917]
[1735797000858,0.3155,3417.0,3416.9,1.32284917]
[1735797001058,0.3155,3417.0,3416.9,4.53064917]
[1735797002255,0.3155,3417.0,3416.9,3.501]
[1735797003053,10.79657951,3417.4,3416.9,3.2078]
[1735797003261,0.4213,3417.3,3417.2,0.29317]
[1735797006764,0.71447,3417.3,3417.2,0.29317]
[1735797007157,0.4213,3417.3,3417.2,0.29317]
[1735797014655,0.4213,3417.3,3417.0,3.2078]
[1735797014656,0.29318,3417.1,3417.0,3.50098]
[1735797015458,0.4213,3417.3,3417.0,3.2078]
[1735797015767,0.71447,3417.3,3417.2,0.29317]
[1735797015964,0.4213,3417.3,3417.2,0.29317]
[1735797018164,0.4213,3417.3,3417.0,3.2078]
[1735797018361,0.29318,3417.1,3417.0,3.50098]
[1735797019271,0.29318,3417.1,3417.0,3.2078]
[1735797021476,0.29319,3417.0,3416.9,0.29319]
[1735797022368,0.4213,3417.3,3416.6,3.2078]
[1735797022576,0.29319,3417.1,3417.0,0.29318]
[1735797023377,3.6296,3417.4,3416.6,3.2078]
[1735797023577,0.2932,3417.0,3416.9,0.29319]
[1735797026482,1.32350069,3417.1,3417.0,0.29319]
[1735797027583,0.2932,3416.9,3416.6,4.23811069]
[1735797027775,1.03031069,3417.1,3416.6,4.23811069]
[1735797027984,0.29319,3417.0,3416.9,0.29319]
[1735797028781,1.03031069,3417.1,3416.6,3.2078]
[1735797028974,3.2078,3417.4,3416.6,3.2078]
[1735797028975,1.32352069,3416.7,3416.6,3.2078]
[1735797029389,0.29322,3416.6,3416.5,0.29323]
[1735797030086,0.29325,3416.3,3416.1,0.29326]
[1735797030282,1.32357069,3416.2,3416.1,0.29327]
[1735797030984,0.29326,3416.2,3416.1,0.29327]
[1735797032785,0.29326,3416.2,3415.7,44.0078]
[1735797032989,0.29325,3416.3,3415.7,3.2078]
[1735797033292,3.2078,3416.3,3415.9,0.29328]
[1735797033490,0.29327,3416.1,3415.9,0.29328]
[1735797033690,3.2078,3416.3,3415.7,3.2078]
[1735797033895,0.29327,3416.0,3415.9,0.29328]
[1735797035091,0.29327,3416.1,3415.9,0.29328]
[1735797035893,0.4354,3416.2,3415.9,0.29328]
[1735797036090,0.29327,3416.0,3415.9,0.29328]
[1735797036598,0.29327,3416.1,3415.9,0.29328]
[1735797036989,0.29327,3416.0,3415.9,0.29328]
[1735797037196,3.01728276,3416.1,3415.3,3.2078]
[1735797037489,3.2078,3415.4,3414.5,3.2078]
[1735797037798,3.2078,3415.4,3415.0,0.29336]
[1735797037990,0.29335,3415.2,3415.0,0.29336]
[1735797038192,0.4472,3415.3,3414.6,0.2932]
[1735797038891,0.29337,3415.0,3414.8,0.29338]
[1735797039090,2.71431276,3415.2,3414.5,45.1658]
[1735797039585,0.29338,3414.8,3414.6,0.29339]
[1735797039997,0.29339,3414.7,3414.5,45.4592]
[1735797040190,0.29339,3414.7,3414.6,0.29339]
[1735797040595,0.4397,3415.1,3414.6,0.29339]
[1735797040796,0.29338,3414.8,3414.6,0.29339]
[1735797042797,0.29339,3414.7,3414.6,0.29339]
[1735797043096,0.29342,3414.4,3414.2,0.74682]
[1735797043295,0.4666,3414.6,3414.2,41.54682]
[1735797043599,0.29342,3414.4,3414.2,41.09342]
[1735797043792,0.29342,3414.4,3414.2,0.29342]
[1735797045303,0.72701,3414.5,3414.3,0.29342]
[1735797045903,0.4336,3414.5,3414.3,0.29342]
[1735797046198,0.29342,3414.4,3414.2,0.29342]
[1735797046399,0.29342,3414.4,3414.2,0.29343]
[1735797046798,0.72701,3414.5,3414.1,4.3658]
[1735797046993,0.4336,3414.5,3414.2,0.29343]
[1735797047300,0.29342,3414.4,3414.2,0.29343]
[1735797047901,0.29342,3414.4,3414.3,0.29342]
[1735797048100,0.8807,3414.5,3414.3,0.29342]
[1735797048399,0.29342,3414.4,3414.1,3.2078]
[1735797048595,0.29342,3414.4,3414.3,0.29342]
[1735797048793,0.29342,3414.4,3414.2,0.29342]
[1735797049096,0.29342,3414.4,3414.3,0.29342]
[1735797049602,1.17411,3414.5,3414.4,0.29341]
[1735797050101,0.8807,3414.5,3414.1,3.2078]
[1735797050302,0.29341,3414.4,3414.2,0.29342]
[1735797050603,0.29341,3414.4,3414.3,0.29342]
[1735797051398,0.29342,3414.3,3414.2,0.29342]
[1735797053298,0.29343,3414.2,3414.1,3.2078]
[1735797057609,0.29343,3414.2,3414.1,3.50124]
[1735797059111,0.29343,3414.2,3414.1,3.2078]
[1735797059905,0.29343,3414.2,3414.1,3.50124]
[1735797060407,2.28411276,3414.3,3414.2,0.29343]
[1735797060613,0.29342,3414.4,3414.3,0.29342]
[1735797061610,0.29342,3414.4,3414.1,3.2078]
[1735797061806,0.29343,3414.3,3414.2,0.29343]
[1735797062008,2.57754276,3414.3,3414.2,0.29343]
[1735797062207,1.32552271,3414.3,3414.2,0.29343]
[1735797062611,0.29343,3414.2,3414.1,3.50123]
[1735797063008,0.29343,3414.2,3414.1,3.2078]
[1735797063309,0.29343,3414.2,3414.1,3.50124]
[1735797063711,0.29343,3414.2,3414.1,3.2078]
[1735797064520,0.29343,3414.2,3414.1,3.50124]
[1735797065215,1.03209271,3414.3,3414.1,3.2078]
[1735797065416,1.32552271,3414.3,3414.2,0.29343]
[1735797065610,1.03209271,3414.3,3414.2,0.29343]
[1735797066512,1.32551271,3414.3,3414.2,0.29343]
[1735797070509,1.32551271,3414.3,3414.1,3.2078]
[1735797070714,0.29347,3413.8,3413.7,3.2078]
[1735797071023,1.32556271,3413.8,3413.7,3.2078]
[1735797071915,1.03209271,3413.8,3413.7,3.50127]
[1735797072217,1.32555271,3413.8,3413.7,3.2078]
[1735797072413,1.03209271,3413.8,3413.7,3.2078]
[1735797072614,1.32555271,3413.8,3413.7,3.50127]
[1735797073114,1.32555271,3413.8,3413.7,3.2078]
[1735797073312,1.32555271,3413.8,3413.7,3.50127]
[1735797073621,0.29348,3413.6,3413.5,0.4578]
[1735797073820,1.32557271,3413.6,3413.5,0.4578]
[1735797074017,1.32557271,3413.6,3413.5,0.29349]
[1735797074217,1.03209271,3413.7,3413.3,3.674]
[1735797074524,1.03209271,3413.7,3413.6,0.29348]
[1735797076520,1.32556271,3413.7,3413.6,0.29348]
[1735797077320,1.03209271,3413.7,3413.3,3.674]
[1735797077523,1.32559271,3413.4,3413.3,3.2078]
[1735797078418,0.29355,3412.9,3412.8,0.29355]
[1735797078614,1.32563271,3412.9,3412.8,0.29355]
[1735797079525,0.29355,3412.8,3412.7,3.2078]
[1735797080022,0.73085,3412.8,3412.7,3.2078]
[1735797081517,0.4373,3412.8,3412.7,3.50136]
[1735797082324,0.73085,3412.8,3412.7,3.2078]
[1735797083624,0.4373,3412.8,3412.7,3.2078]
[1735797083817,0.73085,3412.8,3412.7,3.50136]
[1735797084019,0.73085,3412.8,3412.5,0.29358]
[1735797084217,0.73085,3412.8,3412.6,0.29356]
[1735797085126,0.73085,3412.8,3412.7,0.29356]
[1735797085327,0.4373,3412.8,3412.7,0.29356]
[1735797085523,0.73085,3412.8,3412.7,0.29356]
[1735797086121,0.73085,3412.8,3412.6,41.09356]
[1735797086329,0.4373,3412.8,3412.6,0.29356]
[1735797086524,0.29356,3412.7,3412.6,0.29356]
[1735797088030,0.4373,3412.8,3412.4,0.4665]
[1735797088425,0.29356,3412.7,3412.4,0.76008]
[1735797088624,0.29357,3412.5,3412.4,0.76008]
[1735797088825,0.29357,3412.5,3412.4,0.4665]
[1735797089027,0.8852,3412.7,3412.3,3.2078]
[1735797089222,0.29357,3412.6,3412.3,3.2078]
[1735797089423,0.29357,3412.6,3412.5,0.29357]
[1735797091330,0.29357,3412.5,3412.4,0.75028]
[1735797091531,0.29357,3412.5,3412.4,0.4567]
[1735797091828,0.29357,3412.6,3412.4,0.75028]
[1735797092230,0.8852,3412.7,3412.4,0.4567]
[1735797092424,0.29357,3412.6,3412.4,0.75028]
[1735797093123,3.17414089,3412.7,3412.4,0.4567]
[1735797093427,0.29357,3412.6,3412.5,0.29357]
[1735797093628,0.29357,3412.6,3412.4,0.4567]
[1735797093823,3.17414089,3412.7,3412.3,3.2078]
[1735797094024,2.58252089,3412.4,3412.3,3.50139]
[1735797094227,2.28894089,3412.4,3412.3,3.50139]
[1735797094423,2.58252089,3412.4,3412.3,3.50139]
[1735797094731,2.28894089,3412.4,3412.3,3.50139]
[1735797095231,3.17414089,3412.7,3412.3,3.2078]
[1735797095418,0.29357,3412.6,3412.5,0.29357]
[1735797096533,0.29358,3412.5,3412.4,0.29358]
[1735797096726,0.29093826,3412.5,3412.4,0.29358]
[1735797097231,0.29357,3412.6,3412.5,0.29357]
[1735797098233,0.29358,3412.5,3412.4,0.29358]
[1735797099938,0.29358,3412.4,3412.3,3.2078]
[1735797100231,1.32678777,3412.4,3412.3,3.50139]
[1735797105440,1.32678777,3412.4,3412.3,3.2078]
[1735797105738,1.32678777,3412.4,3412.3,3.50139]
[1735797105928,1.32678777,3412.4,3412.3,0.29359]
[1735797106431,0.2936,3412.3,3412.2,0.2936]
[1735797106929,0.7471,3412.3,3412.2,0.2936]
[1735797112043,0.29361,3412.2,3412.1,0.2936]
[1735797112945,0.7471,3412.3,3412.2,0.2936]
[1735797114545,0.7471,3412.3,3412.1,0.2936]
[1735797114546,0.29361,3412.2,3412.1,0.2936]
[1735797115044,1.32681777,3412.2,3412.1,0.2936]
[1735797115945,1.03320777,3412.2,3412.1,0.2936]
[1735797116657,1.32680777,3412.2,3412.1,0.2936]
[1735797117348,1.03320777,3412.2,3412.1,0.2936]
[1735797120354,1.03320777,3412.2,3411.9,3.50142]
[1735797120650,0.4535,3412.3,3412.0,0.29362]
[1735797120651,0.74931,3412.1,3412.0,0.29362]
[1735797121751,1.78251777,3412.1,3412.0,0.29362]
[1735797124254,0.29362,3412.0,3411.9,3.50142]
[1735797125050,1.78252777,3412.1,3412.0,0.29362]
[1735797125254,2.20516764,3412.1,3412.0,0.29362]
[1735797126956,0.87833987,3412.1,3412.0,0.29362]